Cogmind - Beta 13 @@@ ROGUE MODE // 2024.04.18 @ 16:31:42 Player: lazy_engineer Result: Destroyed by 75-5LQ(R) with Subdweller Beam Cannon Performance ------------- Evolutions (0) 0 Regions Visited (3) 600 Robots Destroyed (3) 15 Value Destroyed (30) 30 Prototype IDs (0) 0 Alien Tech Used (0) 0 Bonus (0) 0 TOTAL SCORE: 645 Bonus ------- None Cogmind --------- Core Integrity 0/250 Matter 300/300 Energy 100/100 System Corruption 0% Temperature Cool (9) Movement Rolling (100) Location -10/Subcaves Parts ------- > --- POWER (1) -------- (None) > --- PROPULSION (2) --- Compact Wheel > --- UTILITY (2) ------ Medium Storage Unit > --- WEAPON (2) ------- (None) > --- INVENTORY (10) --- Ion Engine Small Storage Unit Structural Scanner Makeshift System Shield Peak State ------------ > --- POWER ------------ Ion Engine > --- PROPULSION ------- Wheel Compact Wheel > --- UTILITY ---------- Medium Storage Unit Light Armor Plating > --- WEAPON ----------- EM Pulse Gun Light Assault Rifle > --- INVENTORY -------- Ion Engine Small Storage Unit [Rating: 7] Favorites ----------- Power Ion Engine Engine Ion Engine Propulsion Compact Wheel Wheel Compact Wheel Utility Medium Storage Unit Device Structural Scanner Storage Medium Storage Unit Protection Light Armor Plating Weapon Light Assault Rifle Energy Gun EM Pulse Gun Ballistic Gun Light Assault Rifle Build | -11 -10 -10 -10 ------- Run | Yrd Mat Min Sub Slots Evolved . | . . . . Power . | . . . . Propulsion . | . . . . Utility . | . . . . Weapon . | . . . . Parts Attached 14 | 4 4 4 2 Power 1 | 1 . . . Engine 1 | 1 . . . Core . | . . . . Reactor . | . . . . Propulsion 2 | 2 . . . Treads . | . . . . Leg . | . . . . Wheel 2 | 2 . . . Hover . | . . . . Flight . | . . . . Utility 5 | 1 2 1 1 Device 1 | . . 1 . Storage 2 | 1 1 . . Processor . | . . . . Hackware . | . . . . Protection 2 | . 1 . 1 Artifact . | . . . . Weapon 6 | . 2 3 1 Energy Gun 2 | . 1 1 . Energy Cannon . | . . . . Ballistic Gun 4 | . 1 2 1 Ballistic Cannon . | . . . . Launcher . | . . . . Special Weapon . | . . . . Impact Weapon . | . . . . Slashing Weapon . | . . . . Piercing Weapon . | . . . . Special Melee Weapon . | . . . . Unidentified Prototypes . | . . . . Parts Lost 5 | . . . 5 Power 1 | . . . 1 Propulsion 1 | . . . 1 Utility 1 | . . . 1 Weapon 2 | . . . 2 Highest Loss Streak 4 | . . . 4 To Critical Strikes . | . . . . Average Slot Usage (%) 86 | . 85 89 82 Engine 13 | . 14 14 13 Wheel 27 | . 28 28 25 Device 7 | . . 13 3 Storage 14 | . 14 14 14 Protection 5 | . 11 . 9 Energy Gun 2 | . 8 1 . Ballistic Gun 14 | . 8 16 15 Naked Turns . | . . . . Heaviest Build 21 | 10 21 21 20 Greatest Support 26 | 26 26 26 26 Greatest Overweight (x) 1 | . . . 1 Average Overweight (x) . | . . . . Largest Inventory Capacity 10 | 8 10 10 10 Average Capacity 9 | 7 9 10 10 Most Carried 5 | 4 4 5 5 Average Carried 3 | 2 2 3 4 Final Capacity 10 | 8 10 10 10 Final Carried 4 | 3 2 3 4 Class Distribution -------------------- 100% | Mutant Dominant Class ---------------- Mutant | -10/Materials Mutant | -10/Mines Mutant | -10/Subcaves Resources | -11 -10 -10 -10 ----------- Run | Yrd Mat Min Sub Matter Collected 337 | 234 . 47 56 Remotely . | . . . . Salvage Created 48 | . . 48 . Parts 8 | . . 8 . Haulers Intercepted . | . . . . Recyclers Shooed . | . . . . Parts Field Recycled . | . . . . Retrieved Matter . | . . . . Parts Self-Destructed . | . . . . Prevented . | . . . . Kills | -11 -10 -10 -10 ------- Run | Yrd Mat Min Sub Combat Hostiles Destroyed 3 | . . 3 . Guns 3 | . . 3 . Classes Destroyed 1 | . . 1 . Swarmer 3 | . . 3 . Best Kill Streak 3 | . . 3 . Combat Bots Only 3 | . . 3 . Max Kills in Single Turn 1 | . . 1 . Gunslinging . | . . . . Exploded . | . . . . Melee . | . . . . Uniques/NPCs Destroyed . | . . . . Combat | -11 -10 -10 -10 -------- Run | Yrd Mat Min Sub Hostile Shots Fired 48 | . . 19 29 Missed 10 | . . 3 7 Damage Taken 682 | . . 121 561 Core 275 | . . 53 222 Absorbed by Shields . | . . . . Core Remaining (%) 100 | 100 . . . Volleys Fired 7 | . . 6 1 Largest 2 | . . 2 1 Hottest 60 | . . 60 20 Shots Fired 13 | . . 12 1 Gun 13 | . . 12 1 Cannon . | . . . . Launcher . | . . . . Special . | . . . . Kinetic 7 | . . 6 1 Thermal . | . . . . Explosive . | . . . . Electromagnetic 6 | . . 6 . Robot Hit Streak 2 | . . 2 . Robot Miss Streak 6 | . . 6 . Penetration Max . | . . . . Secondary Targets 2 | . . 2 . Max Gunslinging Chain 1 | . . 1 . Shots Hit Robots 4 | . . 4 . Core Hits 3 | . . 3 . Critical Kills . | . . . . Critical Parts Destroyed . | . . . . Critical Strikes . | . . . . Melee Attacks . | . . . . Impact . | . . . . Slashing . | . . . . Piercing . | . . . . Sneak Attacks . | . . . . Combat Hostiles . | . . . . Follow-up Attacks . | . . . . Damage Inflicted 39 | . . 39 . Guns 39 | . . 39 . Cannons . | . . . . Explosions . | . . . . Melee . | . . . . Ramming . | . . . . Kinetic 8 | . . 8 . Thermal . | . . . . Explosive . | . . . . Electromagnetic 31 | . . 31 . Impact . | . . . . Slashing . | . . . . Piercing . | . . . . Highest Corruption . | . . . . Average Corruption . | . . . . Corruption Purged . | . . . . Corruption Blocked . | . . . . Overload Shots . | . . . . Overflow Damage . | . . . . Projectiles . | . . . . Explosions . | . . . . Melee . | . . . . Knockbacks . | . . . . Impact . | . . . . Kinetic . | . . . . Secondary . | . . . . Self-Inflicted Damage . | . . . . Shots . | . . . . Rammed . | . . . . Targets Rammed . | . . . . Kicked . | . . . . Crushed . | . . . . Highest Temperature 269 | . . 40 269 Average Temperature 65 | . . 24 154 Received Heat Transfer 426 | . . . 426 Siege Activations . | . . . . Robots Corrupted . | . . . . Combat Hostiles . | . . . . Parts Fried . | . . . . Impact Corruptions . | . . . . Robots Melted . | . . . . Combat Hostiles . | . . . . Parts Melted . | . . . . Heat Transferred . | . . . . Parts Sabotaged . | . . . . Parts Stolen . | . . . . Parts Stripped . | . . . . Power Chain Reactions . | . . . . Alert | -11 -10 -10 -10 ------- Run | Yrd Mat Min Sub Peak Influence 89 | . 52 89 . Initial 19 | . . 19 . Average 27 | . 20 60 . Maximum Alert Level . | . . . . Low Security (%) 100 | 100 100 100 . Level 1 . | . . . . Level 2 . | . . . . Level 3 . | . . . . Level 4 . | . . . . Level 5 . | . . . . High Security . | . . . . Max Security . | . . . . Squads Dispatched 1 | . 1 . . Investigation . | . . . . Extermination . | . . . . Reinforcement 1 | . 1 . . Assault . | . . . . Garrison . | . . . . Intercept . | . . . . Searches Triggered . | . . . . Construction Impeded . | . . . . Haulers Reinforced . | . . . . Active Scanning Responses . | . . . . Cargo Convoy Interrupts . | . . . . Stealth | -11 -10 -10 -10 --------- Run | Yrd Mat Min Sub Distress Signals 1 | . 1 . . Communications Jammed . | . . . . Distress Signals . | . . . . Times Spotted 11 | . 4 3 4 Peak Tracking Total 3 | . 3 3 3 Tactical Retreats 3 | . 2 . 1 Traps | -11 -10 -10 -10 ------- Run | Yrd Mat Min Sub Traps Triggered . | . . . . Indirectly . | . . . . Trap Hack Attempts . | . . . . Triggered . | . . . . Disarmed . | . . . . Reprogrammed . | . . . . Reused . | . . . . Traps Extracted . | . . . . Installed . | . . . . Triggered . | . . . . Machines | -11 -10 -10 -10 ---------- Run | Yrd Mat Min Sub Machines Disabled . | . . . . Max in Single Turn . | . . . . Machines Repaired . | . . . . Machines Dismantled . | . . . . Machines Sabotaged . | . . . . Overloaded Fab Kills . | . . . . Hacking | -11 -10 -10 -10 --------- Run | Yrd Mat Min Sub Machines Accessed 1 | . 1 . . Terminals 1 | . 1 . . Fabricators . | . . . . Repair Stations . | . . . . Recycling Units . | . . . . Scanalyzers . | . . . . Garrison Access . | . . . . Total Hacks 1 | . 1 . . Successful 1 | . 1 . . Failed . | . . . . Catastrophic . | . . . . Database Lockouts . | . . . . Manual 1 | . 1 . . Terminals 1 | . 1 . . Fabricators . | . . . . Repair Stations . | . . . . Recycling Units . | . . . . Scanalyzers . | . . . . Garrison Access . | . . . . Terminal Hacks 1 | . 1 . . Branch Access Points 1 | . 1 . . Fabricator Hacks . | . . . . Repair Station Hacks . | . . . . Recycling Unit Hacks . | . . . . Scanalyzer . | . . . . Garrison Access Hacks . | . . . . Unauthorized Hacks . | . . . . Terminals . | . . . . Fabricators . | . . . . Repair Stations . | . . . . Recycling Units . | . . . . Scanalyzers . | . . . . Garrison Access . | . . . . Data Cores Recovered . | . . . . Used . | . . . . Hacking Detections . | . . . . Full Trace Events . | . . . . Feedback Events . | . . . . Feedback Blocked . | . . . . Robot Schematics Acquired . | . . . . Robots Built . | . . . . Authchips . | . . . . Time . | . . . . Total Robot Build Rating . | . . . . Part Schematics Acquired . | . . . . Parts Built . | . . . . Authchips . | . . . . Time . | . . . . Total Part Build Rating . | . . . . Parts Repaired . | . . . . Time . | . . . . Parts Recycled . | . . . . Recycled Matter . | . . . . Retrieved Matter . | . . . . Retrieved Components . | . . . . Parts Scanalyzed . | . . . . Part Schematics Acquired . | . . . . Parts Damaged . | . . . . Bothacking | -11 -10 -10 -10 ------------ Run | Yrd Mat Min Sub Used RIF Installer . | . . . . Robots Hacked . | . . . . Non-combat . | . . . . Combat . | . . . . Robot Hacks Applied . | . . . . Relay Couplers Released . | . . . . Fabnet Peak Effective % . | . . . . Robots Rewired . | . . . . Allies Hacked . | . . . . Hacks Repelled . | . . . . Allies | -11 -10 -10 -10 -------- Run | Yrd Mat Min Sub Total Allies . | . . . . Largest Group . | . . . . Highest-Rated Group . | . . . . Highest-Rated Ally . | . . . . Total Orders . | . . . . Ally Attacks . | . . . . Total Damage . | . . . . Kills . | . . . . Allies Corrupted . | . . . . Allies Melted . | . . . . Intel | -11 -10 -10 -10 ------- Run | Yrd Mat Min Sub Robot Analysis Total . | . . . . Derelict Logs Recovered 1 | . . 1 . Drone Launches . | . . . . Drone Recoveries . | . . . . Exploration | -11 -10 -10 -10 ------------- Run | Yrd Mat Min Sub Turns Passed 1006 | 344 117 326 219 Spaces Moved 567 | 87 107 231 142 Core 13 | 13 . . . Treads . | . . . . Legs . | . . . . Wheels 554 | 74 107 231 142 Hover . | . . . . Flight . | . . . . Fastest Speed 50 | 50 90 90 90 Average Speed 90 | 84 90 90 94 Slowest Speed 115 | 90 90 90 115 Overloaded Moves . | . . . . Propulsion Burnouts . | . . . . Robots Hopped . | . . . . Cave-ins Triggered . | . . . . Exploration Rate (%) 22 | 9 25 43 12 Regions Visited 3 Branch Regions 2 Pre-discovered Areas . | . . . . Known Exits Taken 1 | . 1 . . Unknown Exits Taken 2 | 1 . 1 . Scrap Searched 1 | . . 1 . Spaces Dug . | . . . . Terrain Destroyed . | . . . . Melee . | . . . . Projectile . | . . . . AOE . | . . . . Terrain Rammed . | . . . . Walls Destroyed . | . . . . Machines Disabled . | . . . . Actions | -11 -10 -10 -10 --------- Run | Yrd Mat Min Sub Total 1052 | 360 127 339 226 Wait 439 | 253 15 92 79 Move 564 | 86 106 230 142 Hop . | . . . . Pick Up 18 | 12 2 3 1 Fast Attach . | . . . . Attach 11 | 4 3 3 1 Detach 3 | . . 2 1 Swap 3 | . 1 1 1 Drop 7 | 5 . 2 . Fire 7 | . . 6 1 Melee . | . . . . Ram . | . . . . Kick . | . . . . Crush . | . . . . Escape Stasis . | . . . . Rewire . | . . . . Trap . | . . . . Miscellaneous . | . . . . Route ------- -11/Scrapyard -10/Materials (discovered 3 exits: [*Mat] / *Min x2) -10/Mines (discovered 2 exits: [*Mat] / [*Sub]) -10/Subcaves History --------- Turn | Location | Event 48 | -11/Scrapyard | Discovered new exit (range 15) 345 | -11/Scrapyard | Entered Materials 346 | -10/Materials | Build established: Mutant 372 | -10/Materials | Identified exit to Mines 449 | -10/Materials | Discovered new exit (range 16) 462 | -10/Materials | Entered Mines 485 | -10/Mines | Discovered new exit (range 10) 527 | -10/Mines | Learned Materials stockpile data 747 | -10/Mines | Discovered new exit (range 11) 788 | -10/Mines | Entered Subcaves 789 | -10/Subcaves | Shifting Twisted Machinery released Piercing Trap 813 | -10/Subcaves | Shifting Twisted Machinery released Mak. System Shield 956 | -10/Subcaves | Core integrity fell below 50% 988 | -10/Subcaves | Core integrity fell below 20% 1007 | -10/Subcaves | Destroyed by 75-5LQ(R) with Subdweller Beam Cannon Last Messages --------------- Mak. System Shield falls loose from the Twisted Machinery. 00815_ Acquired Mak. System Shield. 00826_ Critical hit (Meltdown: +300). 00837_ 5N-DND(R) destroyed. 00858_ 0U-C1C(O) collects matter. 00869_ Lgt. Assault Rifle destroyed. 00870_ 61-H17(R) destroyed. 00873_ 0U-C1C(O) collects matter. 00892_ 54-MON(u) tweaks Twisted Machinery. G0-2E1(R) emerges from concealment. 00936_ 75-5LQ(R): "LEAVESUB!" 00956_ 54-MON(u) builds Twisted Machinery. 00961_ Wheel destroyed. 00964_ Acquired 55 matter. 00966_ Acquired 1 matter. 00977_ Lgt. Assault Rifle destroyed. 00989_ Lgt. Armor Plating destroyed. 00992_ 54-MON(u) tweaks Twisted Machinery. 00993_ Ion Engine destroyed. 00996_ Subatomizers dissect the Disposable Heat Sink. Map ----- +----------------------------------------------------+ | ?????????????????????????????????????????????????? | | ?????????????????????????????????????????????????? | | ?????????????????????????????????????????????????? | | ?????????????????????????????????????????????????? | | ?????????????????????????????????????????????????? | | ?????????????????????????????????????????????????? | | ?????????????????????????????????????????????????? | | ?????????????????????????????????????????????????? | | ?????????????????????????????????????????????????? | | ?????????????????????????????????????????????????? | | ?????????????????????????????????????????????????? | | ?????????????????????????????????????????????????? | | ?????????????????????????????????????????????????? | | ???????????????##????????????????????????????????? | | ??????????#####"#????????????##??????????????????? | | ?????????##" " #???????????## ##????????????????? | | ?????????#" "#???????????# ####?????????????? | | ?????????# #???????????# ##????????????? | | ???###???# " ##?????####??# ##???????????? | | ??## ##?####" #####?## ##?? ????????????? | | ?## "" ##?#""" # #?# #?? #?????????????? | | ?# "" ###"" ### #### #?????????????? | | ??# "" ###" ;## #??????????????? | | ??##" ## "" ! ### #??????????????? | | ???# "=R% #??????????????? | | ???# ""%## ! @ &&*[ ##?????????????? | | ???#### " ####;# &%&! ###???????????? | | ??????#### ## "#??##### ##[% ##??????????? | | ?????????#### #??????####### #??????????? | | ????????????# ##????????????## #??????????? | | ????????????# #?????????????## ###????????? | | ????????????# #????????# ### #????????? | | ????????????## #???????# #????????? | | ?????????????# #??????# ## #?####???? | | ?????????????# ##??????# ### #### ##??? | | ?????????????###????? ##% #### ### #??? | | ????????????????????? ???### ??# # # #??? | | ???????????????????????????# #??# #??? | | ??????????????????????????# #???# ##??? | | ??????????????????????????## ????## ### ##???? | | ???????????????????????????## ?????# ### #????? | | ????????????????????????????#??????# ### ##????? | | ?????????????????????????????????### ### #####??? | | ?????????????????????????????????###### ######??? | | ???????????????????????????????"""# ### ###?? | | ???????????????????????????????"""" ####? | | ???????????????????????????????"""" ###? | | ???????????????????????????????""""# !="##? | | ???????????????????????????????##############%&##? | | ??????????????????????????????????########## ##? | +----------------------------------------------------+ Best States ------------- Heat Dissipation 25 Energy Generation 10 Energy Capacity 250 Matter Stores 300 Matter Capacity 300 Sight Range 16 Terrain Scan Density 10 Armor Coverage 150 Evasion (%) 50 Item Schematics ----------------- None Robot Schematics ------------------ None Fabricated ------------ Nothing Alien Tech Used ----------------- None Achievements -------------- None Challenges ------------ None Game ------ Seed StormDiametricBoregun Manual? 0 Play Time 00:07:22 Cumulative 35.6 hours Start 2024.04.18 @ 16:26:03 End 2024.04.18 @ 16:31:42 Sessions 1 Manual Loads 0 Difficulty Rogue Special Mode None Game No. 73 Rogue 73 Adventurer 0 Explorer 0 Win Type - Total 0 Types 0/0/0/0/0/0/0/0/0 Lore% 24 Gallery% 28 Achievement% 25 Wizard Run 0 Options --------- Layout 0 ASCII 0 Keyboard 0 Movement Mouse Keybinds 0 Fullscreen 1 Font 24/Smallcaps Map View 76x50 Zoom Use 0% Tactical HUD 1 Map Filters NONE Filters NONE Steam 1 RUN: af894f09-677a-4300-9a1c-6bf438c788c3